lending/lending_fUSD_20240507
["ID","MTS","AMOUNT","RATE_DAILY","PERIOD"]
[326584968,1715117449496,-500.0,0.0002,2]
[326584969,1715117449506,-500.0,0.0002,2]
[326584970,1715117449515,-500.0,0.0002,2]
[326584971,1715117449525,-821.6,0.0002,2]
[326584972,1715117449534,-500.0,0.0002,2]
[326584973,1715117449544,-500.0,0.0002,2]
[326584974,1715117449553,-500.0,0.0002,2]
[326584975,1715117449562,-500.0,0.0002,2]
[326584976,1715117449572,-500.0,0.0002,2]
[326584977,1715117449581,-500.0,0.0002,2]
[326584978,1715117449591,-502.67,0.0002,2]
[326584979,1715117449600,-500.0,0.0002,2]
[326584980,1715117449609,-628.43683146,0.0002,2]
[326584981,1715117449619,-500.0,0.0002,2]
[326584982,1715117449628,-519.98,0.0002,2]
[326584983,1715117449637,-500.0,0.0002,2]
[326584984,1715117449646,-692.65,0.0002,2]
[326584985,1715117449655,-621.89,0.0002,2]
[326584986,1715117449664,-155.41,0.0002,2]
[326584987,1715117449673,-500.0,0.0002,2]
[326584988,1715117449683,-1030.06,0.0002,2]
[326584989,1715117449692,-500.0,0.0002,2]
[326584990,1715117449701,-500.0,0.0002,2]
[326584991,1715117449711,-500.0,0.0002,2]
[326584992,1715117449721,-891.56,0.0002,2]
[326584993,1715117449730,-500.0,0.0002,2]
[326584994,1715117449740,-4033.12,0.0002,2]
[326584995,1715117449750,-500.0,0.0002,2]
[326584996,1715117449760,-500.0,0.0002,2]
[326584997,1715117449770,-1999.6,0.0002,2]
[326584998,1715117449779,-500.0,0.0002,2]
[326584999,1715117449789,-500.0,0.0002,2]
[326585000,1715117449799,-500.0,0.0002,2]
[326585001,1715117449809,-500.0,0.0002,2]
[326585002,1715117449819,-1975.2,0.0002,2]
[326585003,1715117449836,-1136.63,0.0002,2]
[326585004,1715117449851,-500.0,0.0002,2]
[326585005,1715117449861,-500.0,0.0002,2]
[326585006,1715117449871,-500.0,0.0002,2]
[326585007,1715117449881,-500.0,0.0002,2]
[326585008,1715117449891,-828.79,0.0002,2]
[326585009,1715117449901,-1441.18,0.0002,2]
[326585010,1715117449911,-942.0,0.0002,2]
[326585011,1715117449922,-500.0,0.0002,2]
[326585012,1715117449932,-610.36801015,0.0002,2]
[326585013,1715117449943,-575.6729777,0.0002,2]
[326585014,1715117449953,-500.0,0.0002,2]
[326585015,1715117449963,-500.0,0.0002,2]
[326585016,1715117449974,-500.0,0.0002,2]
[326585017,1715117449984,-500.0,0.0002,2]
[326585018,1715117449995,-500.0,0.0002,2]
[326585019,1715117450005,-964.56,0.0002,2]
[326585020,1715117450016,-500.0,0.0002,2]
[326585021,1715117450026,-500.0,0.0002,2]
[326585022,1715117450036,-500.0,0.0002,2]
[326585023,1715117450046,-500.0,0.0002,2]
[326585024,1715117450056,-2912.13,0.0002,2]
[326585025,1715117450066,-500.0,0.0002,2]
[326585026,1715117450076,-500.0,0.0002,2]
[326585027,1715117450086,-500.0,0.0002,2]
[326585028,1715117450096,-500.0,0.0002,2]
[326585029,1715117450105,-2784.18,0.0002,2]
[326585030,1715117450115,-2616.02,0.0002,2]
[326585031,1715117450125,-500.0,0.0002,2]
[326585032,1715117450135,-500.0,0.0002,2]
[326585033,1715117450146,-500.0,0.0002,2]
[326585034,1715117450156,-500.0,0.0002,2]
[326585035,1715117450166,-555.15,0.0002,2]
[326585036,1715117450176,-733.36,0.0002,2]
[326585037,1715117450187,-500.0,0.0002,2]
[326585038,1715117450197,-611.2,0.0002,2]
[326585039,1715117450211,-500.0,0.0002,2]
[326585040,1715117450221,-500.0,0.0002,2]
[326585041,1715117450232,-500.0,0.0002,2]
[326585042,1715117450243,-604.76,0.0002,2]
[326585043,1715117450254,-1271.1,0.0002,2]
[326585044,1715117450264,-500.0,0.0002,2]
[326585045,1715117450275,-153.56806668,0.00020206,2]
[326585046,1715117450287,-153.56806671,0.00020257,2]
[326585047,1715117450298,-684.85937217,0.00020272,2]
[326585048,1715117450308,-162.11231848,0.00020272,2]
[326585049,1715117450318,-500.0,0.00020273,2]
[326585050,1715117450328,-500.0,0.00020273,2]
[326585051,1715117450337,-500.0,0.00020273,2]
[326585052,1715117450347,-445.62628513,0.00020273,2]
[326585053,1715117450357,-500.0,0.00020273,2]
[326585054,1715117450367,-500.0,0.00020273,2]
[326585055,1715117450377,-500.0,0.00020273,2]
[326585056,1715117450388,-500.0,0.00020273,2]
[326585057,1715117450399,-150.0,0.00020273,2]
[326585058,1715117450409,-500.0,0.00020273,2]
[326585059,1715117450419,-500.0,0.00020273,2]
[326585060,1715117450429,-500.0,0.00020273,2]
[326585061,1715117450439,-500.0,0.00020273,2]
[326585062,1715117450449,-178.75,0.00020273,2]
[326585063,1715117450459,-500.0,0.00020273,2]
[326585064,1715117450468,-500.0,0.00020273,2]
[326585065,1715117450479,-500.0,0.00020273,2]
[326585066,1715117450489,-500.0,0.00020273,2]
[326585067,1715117450499,-319.13572806,0.00020273,2]
[326585068,1715117450509,-500.0,0.00020273,2]
[326585069,1715117450519,-323.97663839,0.00020273,2]
[326585070,1715117450529,-500.0,0.00020273,2]
[326585071,1715117450540,-500.0,0.00020273,2]
[326585072,1715117450551,-500.0,0.00020273,2]
[326585073,1715117450561,-657.46,0.00020273,2]
[326585074,1715117450570,-584.98195293,0.00020273,2]
[326585075,1715117450581,-500.0,0.00020273,2]
[326585076,1715117450591,-500.0,0.00020273,2]
[326585077,1715117450600,-500.0,0.00020273,2]
[326585078,1715117450610,-500.0,0.00020273,2]
[326585079,1715117450620,-500.0,0.00020273,2]
[326585080,1715117450629,-500.0,0.00020273,2]
[326585081,1715117450640,-311.29502714,0.00020273,2]
[326585082,1715117450650,-500.0,0.00020273,2]
[326585083,1715117450660,-500.0,0.00020273,2]
[326585084,1715117450670,-500.0,0.00020273,2]
[326585085,1715117450680,-500.0,0.00020273,2]
[326585086,1715117450690,-500.0,0.00020273,2]
[326585087,1715117450699,-500.0,0.00020273,2]
[326585088,1715117450710,-500.0,0.00020273,2]
[326585089,1715117450720,-999.28,0.00020273,2]
[326585090,1715117450730,-532.96,0.00020273,2]
[326585091,1715117450739,-500.0,0.00020273,2]
[326585092,1715117450750,-500.0,0.00020273,2]
[326585093,1715117450761,-500.0,0.00020273,2]
[326585094,1715117450771,-5497.96,0.00020273,2]
[326585095,1715117450782,-500.0,0.00020273,2]
[326585096,1715117450792,-500.0,0.00020273,2]
[326585097,1715117450802,-500.0,0.00020273,2]
[326585098,1715117450812,-500.0,0.00020273,2]
[326585099,1715117450822,-500.0,0.00020273,2]
[326585100,1715117450832,-500.0,0.00020273,2]
[326585101,1715117450841,-500.0,0.00020273,2]
[326585102,1715117450851,-1739.22,0.00020273,2]
[326585103,1715117450861,-500.0,0.00020273,2]
[326585104,1715117450871,-500.0,0.00020273,2]
[326585105,1715117450880,-500.0,0.00020273,2]
[326585106,1715117450890,-1222.63,0.00020273,2]
[326585107,1715117450899,-500.0,0.00020273,2]
[326585108,1715117450910,-500.0,0.00020273,2]
[326585109,1715117450919,-500.0,0.00020273,2]
[326585110,1715117450934,-594.66,0.00020273,2]
[326585111,1715117450944,-500.0,0.00020273,2]
[326585112,1715117450955,-547.29745492,0.00020273,2]
[326585113,1715117450965,-500.0,0.00020273,2]
[326585114,1715117450975,-748.5,0.00020273,2]
[326585115,1715117450985,-661.0,0.00020273,2]
[326585116,1715117450995,-898.56,0.00020273,2]
[326585117,1715117451005,-500.0,0.00020273,2]
[326585118,1715117451016,-900.29,0.00020273,2]
[326585119,1715117451026,-500.0,0.00020273,2]
[326585120,1715117451036,-500.0,0.00020273,2]
[326585121,1715117451048,-500.0,0.00020273,2]
[326585122,1715117451058,-500.0,0.00020273,2]
[326585123,1715117451068,-500.0,0.00020273,2]
[326585124,1715117451078,-466.66678806,0.00020273,2]
[326585125,1715117451088,-500.0,0.00020273,2]
[326585126,1715117451098,-500.0,0.00020273,2]
[326585127,1715117451109,-825.52,0.00020273,2]
[326585128,1715117451119,-500.0,0.00020273,2]
[326585129,1715117451129,-509.05,0.00020273,2]
[326585130,1715117451140,-500.0,0.00020273,2]
[326585131,1715117451150,-500.0,0.00020273,2]
[326585132,1715117451161,-1014.93,0.00020273,2]
[326585133,1715117451171,-754.68,0.00020273,2]
[326585134,1715117451181,-500.0,0.00020273,2]
[326585135,1715117451191,-500.0,0.00020273,2]
[326585136,1715117451203,-500.0,0.00020273,2]
[326585137,1715117451216,-500.0,0.00020273,2]
[326585138,1715117451226,-821.6,0.00020273,2]
[326585139,1715117451237,-500.0,0.00020273,2]
[326585140,1715117451249,-500.0,0.00020273,2]
[326585141,1715117451259,-500.0,0.00020273,2]
[326585142,1715117451271,-639.08400391,0.00020273,2]
[326585143,1715117451282,-500.0,0.00020273,2]
[326585144,1715117451292,-500.0,0.00020273,2]
[326585145,1715117451303,-502.67,0.00020273,2]
[326585146,1715117451313,-500.0,0.00020273,2]
[326585147,1715117451323,-500.0,0.00020273,2]
[326585148,1715117451333,-519.98,0.00020273,2]
[326585149,1715117451343,-500.0,0.00020273,2]
[326585150,1715117451353,-692.65,0.00020273,2]
[326585151,1715117451363,-621.89,0.00020273,2]
[326585152,1715117451373,-500.0,0.00020273,2]
[326585153,1715117451383,-1030.06,0.00020273,2]
[326585154,1715117451394,-500.0,0.00020273,2]
[326585155,1715117451403,-500.0,0.00020273,2]
[326585156,1715117451414,-500.0,0.00020273,2]
[326585157,1715117451424,-500.0,0.00020273,2]
[326585158,1715117451433,-4033.12,0.00020273,2]
[326585159,1715117451444,-891.56,0.00020273,2]
[326585160,1715117451454,-500.0,0.00020273,2]
[326585161,1715117451464,-531.30022369,0.00020273,2]
[326585162,1715117451474,-1999.6,0.00020273,2]
[326585163,1715117451484,-500.0,0.00020273,2]
[326585164,1715117451494,-500.0,0.00020273,2]
[326585165,1715117451504,-500.0,0.00020273,2]
[326585166,1715117451514,-500.0,0.00020273,2]
[326585167,1715117451524,-1136.63,0.00020273,2]
[326585168,1715117451534,-1975.2,0.00020273,2]
[326585169,1715117451544,-500.0,0.00020273,2]
[326585170,1715117451554,-500.0,0.00020273,2]
[326585171,1715117451564,-500.0,0.00020273,2]
[326585172,1715117451574,-828.79,0.00020273,2]
[326585173,1715117451584,-500.0,0.00020273,2]
[326585174,1715117451594,-1441.18,0.00020273,2]
[326585175,1715117451604,-942.0,0.00020273,2]
[326585176,1715117451615,-500.0,0.00020273,2]
[326585177,1715117451624,-500.0,0.00020273,2]
[326585178,1715117451635,-500.0,0.00020273,2]
[326585179,1715117451645,-500.0,0.00020273,2]
[326585180,1715117451655,-500.0,0.00020273,2]
[326585181,1715117451665,-500.0,0.00020273,2]
[326585182,1715117451675,-964.56,0.00020273,2]
[326585183,1715117451686,-500.0,0.00020273,2]
[326585184,1715117451696,-500.0,0.00020273,2]
[326585185,1715117451706,-500.0,0.00020273,2]
[326585186,1715117451716,-500.0,0.00020273,2]
[326585187,1715117451726,-2912.13,0.00020273,2]
[326585188,1715117451737,-500.0,0.00020273,2]
[326585189,1715117451748,-500.0,0.00020273,2]
[326585190,1715117451760,-500.0,0.00020273,2]
[326585191,1715117451770,-500.0,0.00020273,2]
[326585192,1715117451780,-2784.18,0.00020273,2]
[326585193,1715117451791,-2616.02,0.00020273,2]
[326585194,1715117451800,-500.0,0.00020273,2]
[326585195,1715117451811,-500.0,0.00020273,2]
[326585196,1715117451820,-500.0,0.00020273,2]
[326585197,1715117451831,-555.15,0.00020273,2]
[326585198,1715117451841,-500.0,0.00020273,2]
[326585199,1715117451851,-500.0,0.00020273,2]
[326585200,1715117451861,-733.36,0.00020273,2]
[326585201,1715117451872,-611.2,0.00020273,2]
[326585202,1715117451882,-500.0,0.00020273,2]
[326585203,1715117451892,-500.0,0.00020273,2]
[326585204,1715117451902,-500.0,0.00020273,2]
[326585205,1715117451912,-604.76,0.00020273,2]
[326585206,1715117451922,-1271.1,0.00020273,2]
[326585207,1715117451932,-1179.69427881,0.00020335,2]
[326585208,1715117451942,-198.21,0.00020378,2]
[326585209,1715117451953,-276.5,0.00020415,3]
[326585210,1715117451963,-2875.87761426,0.0002049,2]
[326585211,1715117451974,-554.84517864,0.00020546,2]
[326585212,1715117451984,-155.0,0.00020546,2]
[326585213,1715117451994,-7167.25698134,0.00020547,2]
[326585214,1715117452004,-298.47108253,0.00020547,2]
[326585215,1715117452014,-13407.1134616,0.00020547,2]
[326585216,1715117452024,-500.0,0.00020547,2]
[326585217,1715117452035,-442.76341109,0.00020547,2]
[326585218,1715117452046,-500.0,0.00020547,2]
[326585219,1715117452057,-500.0,0.00020547,2]
[326585220,1715117452247,-500.0,0.00020547,2]
[326585221,1715117452257,-500.0,0.00020547,2]
[326585222,1715117452266,-500.0,0.00020547,2]
[326585223,1715117452276,-150.0,0.00020547,2]
[326585224,1715117452288,-500.0,0.00020547,2]
[326585225,1715117452300,-500.0,0.00020547,2]
[326585226,1715117452310,-500.0,0.00020547,2]
[326585227,1715117452319,-500.0,0.00020547,2]
[326585228,1715117452329,-500.0,0.00020547,2]
[326585229,1715117452339,-500.0,0.00020547,2]
[326585230,1715117452348,-500.0,0.00020547,2]
[326585231,1715117452357,-500.0,0.00020547,2]
[326585232,1715117452367,-500.0,0.00020547,2]
[326585233,1715117452377,-500.0,0.00020547,2]
[326585234,1715117452386,-500.0,0.00020547,2]
[326585235,1715117452395,-500.0,0.00020547,2]
[326585236,1715117452405,-657.46,0.00020547,2]
[326585237,1715117452414,-500.0,0.00020547,2]
[326585238,1715117452424,-500.0,0.00020547,2]
[326585239,1715117452433,-557.98673709,0.00020547,2]
[326585240,1715117452442,-500.0,0.00020547,2]
[326585241,1715117452452,-500.0,0.00020547,2]
[326585242,1715117452461,-500.0,0.00020547,2]
[326585243,1715117452470,-591.99354291,0.00020547,2]
[326585244,1715117452479,-500.0,0.00020547,2]
[326585245,1715117452489,-500.0,0.00020547,2]
[326585246,1715117452497,-500.0,0.00020547,2]
[326585247,1715117452507,-500.0,0.00020547,2]
[326585248,1715117452516,-500.0,0.00020547,2]
[326585249,1715117452526,-500.0,0.00020547,2]
[326585250,1715117452535,-999.28,0.00020547,2]
[326585251,1715117452545,-532.96,0.00020547,2]
[326585252,1715117452554,-500.0,0.00020547,2]
[326585253,1715117452563,-500.0,0.00020547,2]
[326585254,1715117452573,-500.0,0.00020547,2]
[326585255,1715117452582,-5497.96,0.00020547,2]
[326585256,1715117452592,-500.0,0.00020547,2]
[326585257,1715117452601,-500.0,0.00020547,2]
[326585258,1715117452610,-500.0,0.00020547,2]
[326585259,1715117452619,-500.0,0.00020547,2]
[326585260,1715117452628,-500.0,0.00020547,2]
[326585261,1715117452638,-500.0,0.00020547,2]
[326585262,1715117452647,-500.0,0.00020547,2]
[326585263,1715117452656,-1739.22,0.00020547,2]
[326585264,1715117452666,-500.0,0.00020547,2]
[326585265,1715117452676,-500.0,0.00020547,2]
[326585266,1715117452685,-500.0,0.00020547,2]
[326585267,1715117452694,-1222.63,0.00020547,2]
[326585268,1715117452704,-500.0,0.00020547,2]
[326585269,1715117452713,-500.0,0.00020547,2]
[326585270,1715117452722,-500.0,0.00020547,2]
[326585271,1715117452731,-594.66,0.00020547,2]
[326585272,1715117452741,-500.0,0.00020547,2]
[326585273,1715117452750,-500.0,0.00020547,2]
[326585274,1715117452762,-748.5,0.00020547,2]
[326585275,1715117452772,-661.0,0.00020547,2]
[326585276,1715117452786,-898.56,0.00020547,2]
[326585277,1715117452796,-900.29,0.00020547,2]
[326585278,1715117452806,-500.0,0.00020547,2]
[326585279,1715117452815,-238.78882145,0.00020547,2]
[326585280,1715117452825,-500.0,0.00020547,2]
[326585281,1715117452834,-500.0,0.00020547,2]
[326585282,1715117452844,-500.0,0.00020547,2]
[326585283,1715117452853,-500.0,0.00020547,2]
[326585284,1715117452862,-500.0,0.00020547,2]
[326585285,1715117452872,-500.0,0.00020547,2]
[326585286,1715117452881,-825.52,0.00020547,2]
[326585287,1715117452891,-500.0,0.00020547,2]
[326585288,1715117452900,-509.05,0.00020547,2]
[326585289,1715117452910,-500.0,0.00020547,2]
[326585290,1715117452922,-500.0,0.00020547,2]
[326585291,1715117452931,-1014.93,0.00020547,2]
[326585292,1715117452940,-754.68,0.00020547,2]
[326585293,1715117452950,-500.0,0.00020547,2]
[326585294,1715117452960,-500.0,0.00020547,2]
[326585295,1715117452969,-500.0,0.00020547,2]
[326585296,1715117452979,-500.0,0.00020547,2]
[326585297,1715117452988,-821.6,0.00020547,2]
[326585298,1715117452997,-500.0,0.00020547,2]
[326585299,1715117453007,-500.0,0.00020547,2]
[326585300,1715117453016,-500.0,0.00020547,2]
[326585301,1715117453026,-500.0,0.00020547,2]
[326585302,1715117453035,-500.0,0.00020547,2]
[326585303,1715117453044,-502.67,0.00020547,2]
[326585304,1715117453054,-500.0,0.00020547,2]
[326585305,1715117453063,-500.0,0.00020547,2]
[326585306,1715117453072,-519.98,0.00020547,2]
[326585307,1715117453083,-500.0,0.00020547,2]
[326585308,1715117453093,-692.65,0.00020547,2]
[326585309,1715117453103,-621.89,0.00020547,2]
[326585310,1715117453112,-500.0,0.00020547,2]
[326585311,1715117453121,-1030.06,0.00020547,2]
[326585312,1715117453131,-500.0,0.00020547,2]
[326585313,1715117453141,-500.0,0.00020547,2]
[326585314,1715117453150,-500.0,0.00020547,2]
[326585315,1715117453160,-500.0,0.00020547,2]
[326585316,1715117453169,-4033.12,0.00020547,2]
[326585317,1715117453179,-891.56,0.00020547,2]
[326585318,1715117453188,-500.0,0.00020547,2]
[326585319,1715117453197,-1999.6,0.00020547,2]
[326585320,1715117453210,-500.0,0.00020547,2]
[326585321,1715117453219,-500.0,0.00020547,2]
[326585322,1715117453228,-500.0,0.00020547,2]
[326585323,1715117453238,-500.0,0.00020547,2]
[326585324,1715117453248,-1975.2,0.00020547,2]
[326585325,1715117453257,-1136.63,0.00020547,2]
[326585326,1715117453266,-500.0,0.00020547,2]
[326585327,1715117453276,-500.0,0.00020547,2]
[326585328,1715117453289,-500.0,0.00020547,2]
[326585329,1715117453300,-828.79,0.00020547,2]
[326585330,1715117453309,-500.0,0.00020547,2]
[326585331,1715117453318,-1441.18,0.00020547,2]
[326585332,1715117453327,-942.0,0.00020547,2]
[326585333,1715117453337,-500.0,0.00020547,2]
[326585334,1715117453347,-500.0,0.00020547,2]
[326585335,1715117453356,-500.0,0.00020547,2]
[326585336,1715117453366,-500.0,0.00020547,2]
[326585337,1715117453376,-500.0,0.00020547,2]
[326585338,1715117453385,-163.86517199,0.00020547,2]
[326585339,1715117453396,-964.56,0.00020547,2]
[326585340,1715117453406,-500.0,0.00020547,2]
[326585341,1715117453416,-500.0,0.00020547,2]
[326585342,1715117453425,-500.0,0.00020547,2]
[326585343,1715117453436,-500.0,0.00020547,2]
[326585344,1715117453445,-2912.13,0.00020547,2]
[326585345,1715117453454,-500.0,0.00020547,2]
[326585346,1715117453464,-500.0,0.00020547,2]
[326585347,1715117453473,-500.0,0.00020547,2]
[326585348,1715117453482,-500.0,0.00020547,2]
[326585349,1715117453491,-2784.18,0.00020547,2]
[326585350,1715117453501,-2616.02,0.00020547,2]
[326585351,1715117453510,-500.0,0.00020547,2]
[326585352,1715117453520,-500.0,0.00020547,2]
[326585353,1715117453530,-500.0,0.00020547,2]
[326585354,1715117453540,-555.15,0.00020547,2]
[326585355,1715117453551,-500.0,0.00020547,2]
[326585356,1715117453560,-500.0,0.00020547,2]
[326585357,1715117453570,-733.36,0.00020547,2]
[326585358,1715117453580,-611.2,0.00020547,2]
[326585359,1715117453589,-500.0,0.00020547,2]
[326585360,1715117453598,-500.0,0.00020547,2]
[326585361,1715117453607,-500.0,0.00020547,2]
[326585362,1715117453617,-604.76,0.00020547,2]
[326585363,1715117453627,-1271.1,0.00020547,2]
[326585364,1715117453636,-423.26326081,0.000207,2]
[326585365,1715117453645,-992.86,0.0002082,2]
[326585366,1715117453655,-500.0,0.0002082,2]
[326585367,1715117453665,-500.0,0.00020821,2]
[326585368,1715117453674,-638.36587135,0.00020821,2]
[326585369,1715117453683,-500.0,0.00020821,2]
[326585370,1715117453693,-500.0,0.00020821,2]
[326585371,1715117453703,-500.0,0.00020821,2]
[326585372,1715117453712,-500.0,0.00020821,2]
[326585373,1715117453721,-150.0,0.00020821,2]
[326585374,1715117453730,-500.0,0.00020821,2]
[326585375,1715117453740,-500.0,0.00020821,2]
[326585376,1715117453750,-500.0,0.00020821,2]
[326585377,1715117453761,-500.0,0.00020821,2]
[326585378,1715117453770,-500.0,0.00020821,2]
[326585379,1715117453779,-500.0,0.00020821,2]
[326585380,1715117453789,-500.0,0.00020821,2]
[326585381,1715117453798,-500.0,0.00020821,2]
[326585382,1715117453808,-500.0,0.00020821,2]
[326585383,1715117453817,-286.5788175,0.00020821,2]
[326585384,1715117453826,-500.0,0.00020821,2]
[326585385,1715117453836,-500.0,0.00020821,2]
[326585386,1715117453845,-657.46,0.00020821,2]
[326585387,1715117453855,-500.0,0.00020821,2]
[326585388,1715117453864,-566.16307899,0.00020821,2]
[326585389,1715117453874,-500.0,0.00020821,2]
[326585390,1715117453883,-500.0,0.00020821,2]
[326585391,1715117453892,-500.0,0.00020821,2]
[326585392,1715117453902,-500.0,0.00020821,2]
[326585393,1715117453911,-500.0,0.00020821,2]
[326585394,1715117453920,-500.0,0.00020821,2]
[326585395,1715117453930,-500.0,0.00020821,2]
[326585396,1715117453939,-500.0,0.00020821,2]
[326585397,1715117453949,-500.0,0.00020821,2]
[326585398,1715117453958,-999.28,0.00020821,2]
[326585399,1715117453967,-532.96,0.00020821,2]
[326585400,1715117453976,-500.0,0.00020821,2]
[326585401,1715117453986,-500.0,0.00020821,2]
[326585402,1715117453995,-500.0,0.00020821,2]
[326585403,1715117454004,-5497.96,0.00020821,2]
[326585404,1715117454015,-500.0,0.00020821,2]
[326585405,1715117454024,-500.0,0.00020821,2]
[326585406,1715117454034,-500.0,0.00020821,2]
[326585407,1715117454043,-485.55277312,0.00020821,2]
[326585408,1715117454054,-500.0,0.00020821,2]
[326585409,1715117454063,-500.0,0.00020821,2]
[326585410,1715117454072,-500.0,0.00020821,2]
[326585411,1715117454081,-1739.22,0.00020821,2]
[326585412,1715117454091,-500.0,0.00020821,2]
[326585413,1715117454100,-500.0,0.00020821,2]
[326585414,1715117454109,-500.0,0.00020821,2]
[326585415,1715117454119,-1222.63,0.00020821,2]
[326585416,1715117454128,-500.0,0.00020821,2]
[326585417,1715117454138,-500.0,0.00020821,2]
[326585418,1715117454152,-500.0,0.00020821,2]
[326585419,1715117454164,-594.66,0.00020821,2]
[326585420,1715117454176,-500.0,0.00020821,2]
[326585421,1715117454188,-500.0,0.00020821,2]
[326585422,1715117454201,-748.5,0.00020821,2]
[326585423,1715117454215,-661.0,0.00020821,2]
[326585424,1715117454225,-898.56,0.00020821,2]
[326585425,1715117454235,-900.29,0.00020821,2]
[326585426,1715117454249,-500.0,0.00020821,2]
[326585427,1715117454260,-500.0,0.00020821,2]
[326585428,1715117454272,-500.0,0.00020821,2]
[326585429,1715117454285,-500.0,0.00020821,2]
[326585430,1715117454296,-500.0,0.00020821,2]
[326585431,1715117454307,-500.0,0.00020821,2]
[326585432,1715117454320,-500.0,0.00020821,2]
[326585433,1715117454331,-825.52,0.00020821,2]
[326585434,1715117454342,-500.0,0.00020821,2]
[326585435,1715117454355,-509.05,0.00020821,2]
[326585436,1715117454367,-500.0,0.00020821,2]
[326585437,1715117454380,-500.0,0.00020821,2]
[326585438,1715117454391,-1014.93,0.00020821,2]
[326585439,1715117454402,-754.68,0.00020821,2]
[326585440,1715117454412,-500.0,0.00020821,2]
[326585441,1715117454424,-500.0,0.00020821,2]
[326585442,1715117454435,-500.0,0.00020821,2]
[326585443,1715117454447,-500.0,0.00020821,2]
[326585444,1715117454459,-821.6,0.00020821,2]
[326585445,1715117454471,-500.0,0.00020821,2]
[326585446,1715117454481,-500.0,0.00020821,2]
[326585447,1715117454493,-500.0,0.00020821,2]
[326585448,1715117454504,-500.0,0.00020821,2]
[326585449,1715117454514,-500.0,0.00020821,2]
[326585450,1715117454525,-502.67,0.00020821,2]
[326585451,1715117454536,-500.0,0.00020821,2]
[326585452,1715117454548,-500.0,0.00020821,2]
[326585453,1715117454559,-519.98,0.00020821,2]
[326585454,1715117454571,-500.0,0.00020821,2]
[326585455,1715117454582,-692.65,0.00020821,2]
[326585456,1715117454594,-621.89,0.00020821,2]
[326585457,1715117454606,-500.0,0.00020821,2]
[326585458,1715117454616,-1030.06,0.00020821,2]
[326585459,1715117454628,-500.0,0.00020821,2]
[326585460,1715117454640,-500.0,0.00020821,2]
[326585461,1715117454653,-500.0,0.00020821,2]
[326585462,1715117454665,-500.0,0.00020821,2]
[326585463,1715117454676,-4033.12,0.00020821,2]
[326585464,1715117454688,-891.56,0.00020821,2]
[326585465,1715117454699,-500.0,0.00020821,2]
[326585466,1715117454709,-1999.6,0.00020821,2]
[326585467,1715117454719,-500.0,0.00020821,2]